[Event "MČR mládeže v rapid šachu 2024 H10"]
[Site "Harrachov, Czech Republic"]
[Date "????.??.??"]
[Round "4.7"]
[White "Kobersky Matyas"]
[Black "Macharacek Jakub"]
[Result "1/2-1/2"]
[TimeControl "20+5"]
[WhiteFideId "23747501"]
[BlackFideId "23766697"]
[WhiteElo "1533"]
[BlackElo "1584"]

1. d4 {[%clk 00:20:07]} {[%emt 00:00:02]} d5 {[%clk 00:20:09]} {[%emt
00:00:03]} 2. c4 {[%clk 00:20:10]} e6 {[%clk 00:20:13]} {[%emt 00:00:01]} 3.
cxd5 {[%emt 00:00:01]} exd5 {[%emt 00:00:02]} 4. Nc3 {[%clk 00:20:06]} {[%emt
00:00:06]} Nf6 {[%clk 00:20:13]} {[%emt 00:00:05]} 5. Bg5 {[%clk 00:20:10]}
{[%emt 00:00:02]} c6 {[%clk 00:20:14]} {[%emt 00:00:03]} 6. e3 {[%clk
00:20:12]} {[%emt 00:00:03]} Bf5 {[%clk 00:20:17]} {[%emt 00:00:03]} 7. Bd3
{[%clk 00:20:11]} {[%emt 00:00:06]} Bxd3 {[%clk 00:20:15]} {[%emt 00:00:06]} 8.
Qxd3 {[%clk 00:20:15]} {[%emt 00:00:01]} Nbd7 {[%clk 00:20:02]} {[%emt
00:00:18]} 9. Nge2 {[%clk 00:20:17]} {[%emt 00:00:03]} h6 {[%clk 00:20:02]}
{[%emt 00:00:05]} 10. Bh4 {[%clk 00:20:19]} {[%emt 00:00:03]} Bd6 {[%clk
00:19:57]} {[%emt 00:00:07]} 11. f3 {[%clk 00:20:22]} {[%emt 00:00:05]} Qc7
{[%clk 00:19:55]} {[%emt 00:00:07]} 12. e4 {[%clk 00:20:19]} {[%emt 00:00:08]}
dxe4 {[%clk 00:19:40]} {[%emt 00:00:20]} 13. fxe4 {[%clk 00:20:21]} {[%emt
00:00:03]} Bb4 {[%clk 00:18:32]} {[%emt 00:01:12]} 14. a3 {[%clk 00:20:15]}
{[%emt 00:00:12]} Ba5 {[%clk 00:18:20]} {[%emt 00:00:17]} 15. Bg3 {[%clk
00:19:43]} {[%emt 00:00:37]} Qd8 {[%clk 00:17:59]} {[%emt 00:00:25]} 16. Rf1
{[%clk 00:19:29]} {[%emt 00:00:19]} Qe7 {[%clk 00:17:30]} {[%emt 00:00:34]} 17.
Rf3 {[%clk 00:18:04]} {[%emt 00:01:31]} O-O {[%clk 00:16:09]} {[%emt 00:01:25]}
18. e5 {[%clk 00:17:18]} {[%emt 00:00:52]} Nd5 {[%clk 00:14:59]} {[%emt
00:01:14]} 19. O-O-O {[%clk 00:17:05]} {[%emt 00:00:19]} Nxc3 {[%clk 00:14:19]}
{[%emt 00:00:45]} 20. Nxc3 {[%clk 00:17:06]} {[%emt 00:00:04]} Rac8 {[%clk
00:14:03]} {[%emt 00:00:20]} 21. Re3 {[%clk 00:15:56]} {[%emt 00:01:16]} b5
{[%clk 00:13:35]} {[%emt 00:00:33]} 22. Bf4 {[%clk 00:14:59]} {[%emt 00:01:00]}
Bb6 {[%clk 00:12:46]} {[%emt 00:00:55]} 23. Rg3 {[%clk 00:14:38]} {[%emt
00:00:21]} Kh8 {[%clk 00:12:26]} {[%emt 00:00:30]} 24. Qe3 {[%clk 00:14:23]}
{[%emt 00:00:19]} f6 {[%clk 00:11:36]} {[%emt 00:00:56]} 25. exf6 {[%clk
00:12:45]} {[%emt 00:01:43]} Qxe3+ {[%clk 00:11:37]} {[%emt 00:00:04]} 26. Bxe3
{[%clk 00:12:18]} {[%emt 00:00:32]} Nxf6 {[%clk 00:11:28]} {[%emt 00:00:14]} 27.
Rf1 {[%clk 00:12:09]} {[%emt 00:00:13]} a5 {[%clk 00:11:15]} {[%emt 00:00:19]}
28. Rf5 {[%clk 00:11:53]} {[%emt 00:00:18]} Rcd8 {[%clk 00:10:37]} {[%emt
00:00:47]} 29. Ne2 {[%clk 00:11:36]} {[%emt 00:00:20]} Nd5 {[%clk 00:09:51]}
{[%emt 00:00:53]} 30. Rxf8+ {[%clk 00:11:20]} {[%emt 00:00:20]} Rxf8 {[%clk
00:09:53]} {[%emt 00:00:03]} 31. Bd2 {[%clk 00:10:43]} {[%emt 00:00:42]} Re8
{[%clk 00:09:25]} {[%emt 00:00:33]} 32. Kd1 {[%clk 00:10:27]} {[%emt 00:00:20]}
Bc7 {[%clk 00:09:22]} {[%emt 00:00:09]} 33. Rh3 {[%clk 00:10:17]} {[%emt
00:00:12]} Re4 {[%clk 00:09:06]} {[%emt 00:00:22]} 34. g3 {[%clk 00:09:03]}
{[%emt 00:01:21]} Bb6 {[%clk 00:08:54]} {[%emt 00:00:18]} 35. Rh5 {[%clk
00:08:18]} {[%emt 00:00:47]} Bxd4 {[%clk 00:08:31]} {[%emt 00:00:28]} 36. Nxd4
{[%clk 00:08:16]} {[%emt 00:00:08]} Rxd4 {[%clk 00:08:35]} {[%emt 00:00:02]} 37.
Kc2 {[%clk 00:08:19]} {[%emt 00:00:02]} a4 {[%clk 00:08:06]} {[%emt 00:00:34]}
38. Rf5 {[%clk 00:07:38]} {[%emt 00:00:37]} Kh7 {[%clk 00:07:52]} {[%emt
00:00:26]} 39. Rf7 {[%clk 00:07:25]} {[%emt 00:00:18]} Kg6 {[%clk 00:07:49]}
{[%emt 00:00:09]} 40. Ra7 {[%clk 00:07:22]} {[%emt 00:00:06]} Kf6 {[%clk
00:07:20]} {[%emt 00:00:35]} 41. h4 {[%clk 00:06:40]} {[%emt 00:00:48]} Rg4
{[%clk 00:07:11]} {[%emt 00:00:13]} 42. Be1 {[%clk 00:06:20]} {[%emt 00:00:25]}
Ne3+ {[%clk 00:07:07]} {[%emt 00:00:10]} 43. Kd3 {[%clk 00:06:19]} {[%emt
00:00:02]} Nc4 {[%clk 00:06:56]} {[%emt 00:00:19]} 44. Bc3+ {[%clk 00:06:11]}
{[%emt 00:00:14]} Ke6 {[%clk 00:06:48]} {[%emt 00:00:12]} 45. Rxg7 {[%clk
00:06:08]} {[%emt 00:00:09]} Rxg7 {[%clk 00:06:43]} {[%emt 00:00:10]} 46. Bxg7
{[%clk 00:06:12]} {[%emt 00:00:01]} h5 {[%clk 00:06:40]} {[%emt 00:00:08]} 47.
Bd4 {[%clk 00:06:03]} {[%emt 00:00:13]} Kd5 {[%clk 00:06:32]} {[%emt 00:00:14]}
48. Bc3 {[%clk 00:05:53]} {[%emt 00:00:16]} c5 {[%clk 00:06:16]} {[%emt
00:00:20]} 49. Bf6 {[%clk 00:05:17]} {[%emt 00:00:40]} Ne5+ {[%clk 00:05:56]}
{[%emt 00:00:25]} 50. Kc3 {[%clk 00:04:59]} {[%emt 00:00:23]} Ng4 {[%clk
00:05:44]} {[%emt 00:00:17]} 51. Bg5 {[%clk 00:04:54]} {[%emt 00:00:09]} Nh2
{[%clk 00:05:26]} {[%emt 00:00:22]} 52. Bf4 {[%clk 00:04:36]} {[%emt 00:00:24]}
Nf3 {[%clk 00:04:58]} {[%emt 00:00:34]} 53. Be3 {[%clk 00:04:26]} {[%emt
00:00:13]} Ne1 {[%clk 00:04:40]} {[%emt 00:00:24]} 54. Bf2 {[%clk 00:04:06]}
{[%emt 00:00:25]} Nf3 {[%clk 00:04:01]} {[%emt 00:00:46]} 55. Be3 {[%clk
00:03:50]} {[%emt 00:00:20]} Ne5 {[%clk 00:04:00]} {[%emt 00:00:07]} 56. Bf2
{[%clk 00:03:46]} {[%emt 00:00:09]} Nc6 {[%clk 00:03:59]} {[%emt 00:00:06]} 57.
Be3 {[%clk 00:03:20]} {[%emt 00:00:31]} b4+ {[%clk 00:03:38]} {[%emt 00:00:27]}
58. axb4 {[%clk 00:03:13]} {[%emt 00:00:12]} cxb4+ {[%clk 00:03:42]} {[%emt
00:00:01]} 59. Kd3 {[%clk 00:03:15]} {[%emt 00:00:02]} Ne5+ {[%clk 00:03:44]}
{[%emt 00:00:03]} 60. Kc2 {[%clk 00:03:15]} {[%emt 00:00:04]} Nc4 {[%clk
00:03:43]} {[%emt 00:00:07]} 61. Bc1 {[%clk 00:02:44]} {[%emt 00:00:37]} Kd4
{[%clk 00:03:32]} {[%emt 00:00:15]} 62. b3 {[%clk 00:02:34]} {[%emt 00:00:15]}
Na3+ {[%emt 00:01:00]} 63. Bxa3 {[%emt 00:00:07]} bxa3 {[%emt 00:00:03]} 64.
bxa4 {[%emt 00:00:04]} Ke4 {[%emt 00:00:06]} 65. Kb3 {[%emt 00:00:01]} Kf3
{[%emt 00:00:02]} 66. Kxa3 {[%emt 00:00:02]} 1/2-1/2



[ePGN "0.1;DGT LiveChess/2.2.6"]

[Event "MČR mládeže v rapid šachu 2024 H10"]
[Site "Harrachov, Czech Republic"]
[Date "????.??.??"]
[Round "4.8"]
[White "Stepnicka Filip"]
[Black "Sromek Sebastian"]
[Result "1-0"]
[TimeControl "20+5"]
[WhiteFideId "23771542"]
[BlackFideId "23775122"]
[WhiteElo "1531"]
[BlackElo "1525"]

1. e4 {[%clk 00:20:12]} {[%emt 00:00:03]} e6 {[%clk 00:20:10]} {[%emt
00:00:02]} 2. d4 {[%clk 00:20:13]} {[%emt 00:00:05]} d5 {[%clk 00:20:05]}
{[%emt 00:00:09]} 3. Nc3 {[%clk 00:20:15]} {[%emt 00:00:05]} dxe4 {[%clk
00:19:50]} {[%emt 00:00:19]} 4. Nxe4 {[%clk 00:20:16]} {[%emt 00:00:04]} Bd7
{[%clk 00:19:36]} {[%emt 00:00:19]} 5. Nf3 {[%clk 00:20:06]} {[%emt 00:00:14]}
Bc6 {[%clk 00:19:35]} {[%emt 00:00:06]} 6. Ng3 {[%clk 00:19:42]} {[%emt
00:00:29]} Nf6 {[%clk 00:19:22]} {[%emt 00:00:18]} 7. Bc4 {[%clk 00:19:13]}
{[%emt 00:00:35]} Be7 {[%clk 00:19:19]} {[%emt 00:00:08]} 8. Be3 {[%clk
00:18:40]} {[%emt 00:00:38]} O-O {[%clk 00:19:09]} {[%emt 00:00:15]} 9. O-O
{[%clk 00:18:31]} {[%emt 00:00:13]} Bxf3 {[%clk 00:18:56]} {[%emt 00:00:18]} 10.
Qxf3 {[%clk 00:18:33]} {[%emt 00:00:04]} Nc6 {[%clk 00:18:55]} {[%emt
00:00:05]} 11. Rad1 {[%clk 00:18:22]} {[%emt 00:00:15]} Nb4 {[%clk 00:18:27]}
{[%emt 00:00:34]} 12. c3 {[%clk 00:18:10]} {[%emt 00:00:16]} Nc6 {[%clk
00:18:20]} {[%emt 00:00:12]} 13. b4 {[%clk 00:17:59]} {[%emt 00:00:17]} a6
{[%clk 00:18:02]} {[%emt 00:00:18]} 14. a4 {[%clk 00:17:54]} {[%emt 00:00:10]}
Rb8 {[%clk 00:17:42]} {[%emt 00:00:29]} 15. Bxa6 {[%clk 00:17:24]} {[%emt
00:00:35]} bxa6 {[%clk 00:17:17]} {[%emt 00:00:30]} 16. Qxc6 {[%clk 00:17:26]}
{[%emt 00:00:04]} Rb6 {[%clk 00:17:19]} {[%emt 00:00:02]} 17. Qf3 {[%clk
00:17:25]} {[%emt 00:00:06]} Nd5 {[%clk 00:17:16]} {[%emt 00:00:08]} 18. Rc1
{[%clk 00:16:45]} {[%emt 00:00:45]} Qd7 {[%clk 00:16:57]} {[%emt 00:00:25]} 19.
a5 {[%clk 00:16:31]} {[%emt 00:00:20]} Rc6 {[%clk 00:16:48]} {[%emt 00:00:13]}
20. Bd2 {[%clk 00:16:15]} {[%emt 00:00:20]} Rd6 {[%clk 00:16:28]} {[%emt
00:00:26]} 21. c4 {[%clk 00:15:39]} {[%emt 00:00:40]} Nf6 {[%clk 00:16:20]}
{[%emt 00:00:13]} 22. Be3 {[%clk 00:15:20]} {[%emt 00:00:24]} Qc8 {[%clk
00:16:00]} {[%emt 00:00:25]} 23. Rfd1 {[%clk 00:15:01]} {[%emt 00:00:25]} Rd7
{[%clk 00:15:46]} {[%emt 00:00:19]} 24. b5 {[%clk 00:14:46]} {[%emt 00:00:20]}
axb5 {[%clk 00:15:44]} {[%emt 00:00:07]} 25. cxb5 {[%clk 00:14:48]} {[%emt
00:00:03]} Qb8 {[%clk 00:15:44]} {[%emt 00:00:02]} 26. Rb1 {[%clk 00:14:25]}
{[%emt 00:00:30]} Nd5 {[%clk 00:15:29]} {[%emt 00:00:20]} 27. Rdc1 {[%clk
00:13:33]} {[%emt 00:00:57]} h6 {[%clk 00:14:29]} {[%emt 00:01:04]} 28. a6
{[%clk 00:13:20]} {[%emt 00:00:20]} Ba3 {[%clk 00:13:42]} {[%emt 00:00:52]} 29.
Rc6 {[%clk 00:12:53]} {[%emt 00:00:28]} f5 {[%clk 00:13:02]} {[%emt 00:00:49]}
30. Bf4 {[%clk 00:12:16]} {[%emt 00:00:41]} Nxf4 {[%clk 00:12:53]} {[%emt
00:00:15]} 31. Qxf4 {[%clk 00:12:07]} {[%emt 00:00:14]} Bd6 {[%clk 00:12:44]}
{[%emt 00:00:13]} 32. Qf3 {[%clk 00:12:04]} {[%emt 00:00:09]} Bxg3 {[%emt
00:00:04]} 33. Qxg3 {[%emt 00:00:03]} Rxd4 {[%clk 00:12:21]} {[%emt 00:00:22]}
34. Qxc7 {[%clk 00:11:58]} {[%emt 00:00:10]} Qxb5 {[%clk 00:12:23]} {[%emt
00:00:04]} 35. Rbc1 {[%clk 00:11:19]} {[%emt 00:00:42]} Rfd8 {[%clk 00:11:43]}
{[%emt 00:00:48]} 36. h3 {[%clk 00:10:59]} {[%emt 00:00:24]} R8d7 {[%clk
00:11:28]} {[%emt 00:00:20]} 37. Qc8+ {[%clk 00:10:52]} {[%emt 00:00:12]} Rd8
{[%clk 00:11:30]} {[%emt 00:00:03]} 38. Qb7 {[%clk 00:10:53]} {[%emt 00:00:04]}
Qe5 {[%clk 00:11:16]} {[%emt 00:00:19]} 39. Rc8 {[%clk 00:09:43]} {[%emt
00:01:16]} Kh7 {[%clk 00:10:57]} {[%emt 00:00:24]} 40. Rxd8 {[%clk 00:09:38]}
{[%emt 00:00:10]} Rxd8 {[%clk 00:11:00]} {[%emt 00:00:02]} 41. a7 {[%clk
00:09:35]} {[%emt 00:00:09]} Qf4 {[%clk 00:10:44]} {[%emt 00:00:21]} 42. Rb1
{[%clk 00:09:07]} {[%emt 00:00:28]} Qa4 {[%clk 00:10:34]} {[%emt 00:00:19]} 43.
Qb8 {[%clk 00:08:31]} {[%emt 00:00:42]} Qa5 {[%clk 00:06:58]} {[%emt 00:03:41]}
44. Qxd8 {[%clk 00:06:03]} {[%emt 00:02:33]} Qxd8 {[%clk 00:07:02]} {[%emt
00:00:02]} 45. Rb8 {[%clk 00:06:03]} {[%emt 00:00:05]} Qd1+ {[%clk 00:06:59]}
{[%emt 00:00:07]} 46. Kh2 {[%clk 00:06:05]} {[%emt 00:00:02]} Qd6+ {[%clk
00:07:02]} {[%emt 00:00:03]} 47. g3 {[%clk 00:05:57]} {[%emt 00:00:13]} Qd2
{[%clk 00:06:49]} {[%emt 00:00:18]} 48. a8=Q {[%clk 00:05:49]} {[%emt
00:00:13]} Qxf2+ {[%clk 00:06:50]} {[%emt 00:00:03]} 49. Qg2 {[%clk 00:05:52]}
{[%emt 00:00:02]} Qa7 {[%clk 00:06:49]} {[%emt 00:00:06]} 50. Rb7 {[%clk
00:05:49]} {[%emt 00:00:09]} Qa3 {[%clk 00:06:51]} {[%emt 00:00:02]} 51. Qb2
{[%clk 00:05:45]} {[%emt 00:00:09]} Qf8 {[%clk 00:06:31]} {[%emt 00:00:25]} 52.
Rb8 {[%clk 00:05:43]} {[%emt 00:00:06]} Qf7 {[%clk 00:06:32]} {[%emt 00:00:05]}
53. Qb7 {[%clk 00:05:22]} {[%emt 00:00:27]} Qf6 {[%clk 00:06:31]} {[%emt
00:00:05]} 54. Qa8 {[%clk 00:04:42]} {[%emt 00:00:45]} Qd4 {[%clk 00:06:08]}
{[%emt 00:00:28]} 55. Rh8+ {[%clk 00:04:40]} {[%emt 00:00:06]} Kg6 {[%clk
00:06:12]} {[%emt 00:00:02]} 56. Qe8+ {[%clk 00:04:38]} {[%emt 00:00:07]} Kf6
{[%clk 00:06:15]} {[%emt 00:00:02]} 57. Rxh6+ {[%clk 00:04:21]} {[%emt
00:00:21]} Ke5 {[%clk 00:06:09]} {[%emt 00:00:11]} 58. Qb8+ {[%clk 00:04:17]}
{[%emt 00:00:09]} Ke4 {[%clk 00:06:06]} {[%emt 00:00:08]} 59. Rh4+ {[%clk
00:04:20]} {[%emt 00:00:02]} Kd5 {[%clk 00:06:02]} {[%emt 00:00:09]} 60. Rxd4+
{[%clk 00:04:24]} {[%emt 00:00:02]} Kxd4 {[%clk 00:06:05]} 61. Qa7+ {[%clk
00:04:26]} {[%emt 00:00:03]} Ke5 {[%clk 00:06:08]} {[%emt 00:00:02]} 62. Qxg7+
{[%clk 00:04:30]} {[%emt 00:00:02]} Kd6 {[%clk 00:06:11]} 63. h4 {[%clk
00:04:31]} {[%emt 00:00:04]} e5 {[%clk 00:06:14]} {[%emt 00:00:03]} 64. Qf6+
{[%clk 00:04:34]} {[%emt 00:00:01]} Kd5 {[%clk 00:06:18]} 65. Qxf5 {[%clk
00:04:38]} {[%emt 00:00:02]} Kd4 {[%clk 00:06:21]} 66. Kg2 {[%clk 00:04:39]}
{[%emt 00:00:04]} e4 {[%clk 00:06:26]} {[%emt 00:00:02]} 67. Kf2 {[%clk
00:04:42]} {[%emt 00:00:02]} e3+ {[%clk 00:06:28]} {[%emt 00:00:03]} 68. Ke2
{[%clk 00:04:45]} {[%emt 00:00:02]} Kc3 {[%clk 00:06:30]} {[%emt 00:00:02]} 69.
Kxe3 {[%clk 00:04:49]} {[%emt 00:00:02]} Kc4 {[%clk 00:06:34]} {[%emt
00:00:01]} 70. Qg5 {[%clk 00:04:47]} {[%emt 00:00:06]} Kc3 {[%clk 00:06:37]}
{[%emt 00:00:02]} 71. Qc5+ {[%clk 00:04:51]} {[%emt 00:00:01]} Kb3 {[%clk
00:06:41]} 72. Kd3 {[%clk 00:04:53]} {[%emt 00:00:03]} Kb2 {[%clk 00:06:43]}
{[%emt 00:00:03]} 73. Qc3+ {[%clk 00:04:54]} {[%emt 00:00:03]} Ka2 {[%clk
00:06:36]} {[%emt 00:00:12]} 74. Qb4 {[%clk 00:04:57]} {[%emt 00:00:02]} Ka1
{[%clk 00:06:39]} {[%emt 00:00:02]} 75. Kc3 {[%clk 00:05:00]} {[%emt 00:00:02]}
Ka2 {[%clk 00:06:42]} {[%emt 00:00:02]} 76. Qb2# {[%clk 00:05:04]} {[%emt
00:00:01]} 1-0



[ePGN "0.1;DGT LiveChess/2.2.6"]

[Event "MČR mládeže v rapid šachu 2024 H10"]
[Site "Harrachov, Czech Republic"]
[Date "????.??.??"]
[Round "5.1"]
[White "Hlavacek Pavel"]
[Black "Zidek Damian"]
[Result "0-1"]
[TimeControl "20+5"]
[WhiteFideId "23761768"]
[BlackFideId "23761652"]
[WhiteElo "1641"]
[BlackElo "1763"]

1. d4 {[%clk 00:20:09]} e6 {[%clk 00:20:10]} {[%emt 00:00:01]} 2. c4 {[%clk
00:20:11]} {[%emt 00:00:03]} Nf6 {[%clk 00:20:11]} {[%emt 00:00:03]} 3. Nc3
{[%clk 00:20:14]} {[%emt 00:00:02]} Bb4 {[%clk 00:20:14]} 4. Bg5 {[%clk
00:19:45]} {[%emt 00:00:34]} h6 {[%clk 00:20:14]} {[%emt 00:00:05]} 5. Bh4
{[%clk 00:19:49]} {[%emt 00:00:02]} c5 {[%clk 00:20:16]} {[%emt 00:00:04]} 6.
e3 {[%clk 00:19:48]} {[%emt 00:00:06]} Bxc3+ {[%clk 00:20:12]} {[%emt
00:00:08]} 7. bxc3 {[%clk 00:19:52]} {[%emt 00:00:01]} d6 {[%clk 00:20:15]}
{[%emt 00:00:02]} 8. Nf3 {[%clk 00:19:42]} {[%emt 00:00:19]} O-O {[%clk
00:20:21]} {[%emt 00:00:04]} 9. Bd3 {[%clk 00:19:42]} {[%emt 00:00:06]} Nc6
{[%clk 00:20:17]} {[%emt 00:00:09]} 10. O-O {[%clk 00:19:44]} {[%emt 00:00:03]}
b6 {[%clk 00:20:14]} {[%emt 00:00:08]} 11. d5 {[%clk 00:18:48]} {[%emt
00:01:01]} Na5 {[%clk 00:20:00]} {[%emt 00:00:20]} 12. e4 {[%clk 00:18:19]}
{[%emt 00:00:34]} e5 {[%clk 00:19:57]} {[%emt 00:00:08]} 13. Nd2 {[%clk
00:17:46]} {[%emt 00:00:37]} Bg4 {[%clk 00:18:08]} {[%emt 00:01:54]} 14. Be2
{[%clk 00:17:14]} {[%emt 00:00:37]} Bxe2 {[%clk 00:17:54]} {[%emt 00:00:20]} 15.
Qxe2 {[%clk 00:17:17]} {[%emt 00:00:02]} g5 {[%clk 00:17:40]} {[%emt 00:00:19]}
16. Bg3 {[%clk 00:17:20]} {[%emt 00:00:02]} Nh7 {[%clk 00:17:26]} {[%emt
00:00:19]} 17. Nb3 {[%clk 00:17:07]} {[%emt 00:00:19]} Nb7 {[%clk 00:17:00]}
{[%emt 00:00:30]} 18. a4 {[%clk 00:16:28]} {[%emt 00:00:44]} Qd7 {[%clk
00:16:44]} {[%emt 00:00:20]} 19. a5 {[%emt 00:00:11]} f5 {[%clk 00:16:31]}
{[%emt 00:00:17]} 20. exf5 {[%clk 00:15:57]} {[%emt 00:00:32]} Qxf5 {[%clk
00:16:27]} {[%emt 00:00:07]} 21. a6 {[%clk 00:15:36]} {[%emt 00:00:27]} Nd8
{[%clk 00:16:27]} {[%emt 00:00:05]} 22. Nd2 {[%clk 00:15:27]} {[%emt 00:00:15]}
Nf7 {[%clk 00:16:22]} {[%emt 00:00:09]} 23. Qe4 {[%clk 00:15:00]} {[%emt
00:00:32]} Qxe4 {[%clk 00:16:14]} {[%emt 00:00:14]} 24. Nxe4 {[%clk 00:15:03]}
Kg7 {[%clk 00:16:16]} {[%emt 00:00:03]} 25. f3 {[%clk 00:15:03]} {[%emt
00:00:06]} Nf6 {[%clk 00:16:11]} {[%emt 00:00:10]} 26. Ra2 {[%clk 00:14:27]}
{[%emt 00:00:40]} Nxe4 {[%clk 00:16:09]} {[%emt 00:00:07]} 27. fxe4 {[%clk
00:14:31]} {[%emt 00:00:02]} Nh8 {[%clk 00:16:10]} {[%emt 00:00:03]} 28. Raf2
{[%clk 00:14:25]} {[%emt 00:00:12]} Rxf2 {[%clk 00:16:03]} {[%emt 00:00:12]} 29.
Rxf2 {[%clk 00:14:27]} {[%emt 00:00:03]} Ng6 {[%clk 00:16:05]} {[%emt
00:00:02]} 30. Kf1 {[%clk 00:13:48]} {[%emt 00:00:45]} Nf4 {[%clk 00:15:57]}
{[%emt 00:00:13]} 31. Bxf4 {[%clk 00:13:51]} {[%emt 00:00:02]} exf4 {[%clk
00:15:55]} {[%emt 00:00:07]} 32. Re2 {[%clk 00:12:58]} {[%emt 00:00:58]} Kf6
{[%clk 00:15:38]} {[%emt 00:00:22]} 33. Kf2 {[%clk 00:12:57]} {[%emt 00:00:05]}
Ke5 {[%clk 00:15:30]} {[%emt 00:00:13]} 34. Kf3 {[%clk 00:12:36]} {[%emt
00:00:25]} h5 {[%clk 00:15:31]} {[%emt 00:00:06]} 35. h3 {[%clk 00:12:24]}
{[%emt 00:00:17]} Rg8 {[%clk 00:15:29]} {[%emt 00:00:07]} 36. g4 {[%clk
00:11:36]} {[%emt 00:00:53]} fxg3 {[%clk 00:15:28]} {[%emt 00:00:06]} 37. Kxg3
{[%clk 00:11:39]} {[%emt 00:00:02]} Rf8 {[%clk 00:15:32]} 38. Kg2 {[%clk
00:11:20]} {[%emt 00:00:24]} Rf4 {[%clk 00:15:22]} {[%emt 00:00:16]} 39. Re3
{[%clk 00:10:12]} {[%emt 00:01:14]} g4 {[%clk 00:15:05]} {[%emt 00:00:21]} 40.
hxg4 {[%clk 00:09:37]} {[%emt 00:00:40]} hxg4 {[%clk 00:15:05]} {[%emt
00:00:05]} 41. Re2 {[%clk 00:08:58]} {[%emt 00:00:43]} Rxe4 {[%clk 00:14:28]}
{[%emt 00:00:42]} 42. Rf2 {[%clk 00:08:57]} {[%emt 00:00:07]} Rxc4 {[%clk
00:14:29]} {[%emt 00:00:04]} 43. Rf7 {[%clk 00:09:00]} {[%emt 00:00:02]} Rxc3
{[%clk 00:14:03]} {[%emt 00:00:31]} 44. Rxa7 {[%clk 00:09:01]} {[%emt
00:00:04]} Ra3 {[%clk 00:14:03]} {[%emt 00:00:04]} 45. Ra8 {[%clk 00:09:03]}
{[%emt 00:00:04]} Kxd5 {[%clk 00:14:01]} {[%emt 00:00:07]} 46. a7 {[%clk
00:08:56]} {[%emt 00:00:13]} b5 {[%clk 00:13:53]} {[%emt 00:00:10]} 0-1



[ePGN "0.1;DGT LiveChess/2.2.6"]

[Event "MČR mládeže v rapid šachu 2024 H10"]
[Site "Harrachov, Czech Republic"]
[Date "????.??.??"]
[Round "5.2"]
[White "Strihavka Petr"]
[Black "Bucek Vit"]
[Result "1-0"]
[TimeControl "20+5"]
[WhiteFideId "23760702"]
[BlackFideId "23750812"]
[WhiteElo "1546"]
[BlackElo "1586"]

1. e4 {[%clk 00:20:09]} c5 {[%clk 00:20:10]} {[%emt 00:00:01]} 2. Nf3 {[%clk
00:20:12]} {[%emt 00:00:01]} Nc6 {[%clk 00:20:14]} {[%emt 00:00:01]} 3. d4
{[%clk 00:20:15]} {[%emt 00:00:01]} cxd4 {[%clk 00:20:18]} {[%emt 00:00:01]} 4.
Nxd4 {[%clk 00:20:18]} {[%emt 00:00:02]} g6 {[%clk 00:20:21]} {[%emt 00:00:02]}
5. Nc3 {[%clk 00:20:21]} {[%emt 00:00:02]} Bg7 {[%clk 00:20:25]} 6. Be3 {[%clk
00:20:24]} {[%emt 00:00:02]} Nf6 {[%clk 00:20:28]} {[%emt 00:00:03]} 7. Be2
{[%clk 00:20:25]} {[%emt 00:00:03]} d6 {[%clk 00:20:30]} {[%emt 00:00:03]} 8.
O-O {[%clk 00:20:25]} {[%emt 00:00:05]} O-O {[%clk 00:20:33]} {[%emt 00:00:03]}
9. h3 {[%clk 00:20:25]} {[%emt 00:00:04]} Bd7 {[%clk 00:20:37]} {[%emt
00:00:02]} 10. Qd2 {[%clk 00:20:22]} {[%emt 00:00:07]} Rc8 {[%clk 00:20:39]}
{[%emt 00:00:04]} 11. Rad1 {[%clk 00:20:07]} {[%emt 00:00:19]} Ne5 {[%clk
00:20:23]} {[%emt 00:00:22]} 12. Bh6 {[%clk 00:19:00]} {[%emt 00:01:12]} Nc4
{[%clk 00:20:20]} {[%emt 00:00:08]} 13. Bxc4 {[%clk 00:19:00]} {[%emt
00:00:04]} Rxc4 {[%clk 00:20:24]} {[%emt 00:00:02]} 14. Bxg7 {[%clk 00:18:54]}
{[%emt 00:00:10]} Kxg7 {[%clk 00:20:26]} {[%emt 00:00:03]} 15. f4 {[%clk
00:18:36]} {[%emt 00:00:22]} Qb6 {[%clk 00:20:14]} {[%emt 00:00:15]} 16. b3
{[%clk 00:17:46]} {[%emt 00:00:58]} Rcc8 {[%clk 00:20:03]} {[%emt 00:00:16]} 17.
e5 {[%clk 00:16:58]} {[%emt 00:00:53]} dxe5 {[%clk 00:19:33]} {[%emt 00:00:35]}
18. fxe5 {[%clk 00:16:57]} {[%emt 00:00:06]} Ne8 {[%clk 00:19:32]} {[%emt
00:00:07]} 19. Nd5 {[%clk 00:16:19]} {[%emt 00:00:42]} Qc5 {[%clk 00:18:56]}
{[%emt 00:00:40]} 20. b4 {[%clk 00:15:38]} {[%emt 00:00:47]} Qc4 {[%clk
00:17:55]} {[%emt 00:01:07]} 21. Nxe7 {[%clk 00:15:14]} {[%emt 00:00:28]} Rd8
{[%clk 00:17:24]} {[%emt 00:00:33]} 22. Nef5+ {[%clk 00:13:00]} {[%emt
00:02:22]} Kh8 {[%clk 00:17:02]} {[%emt 00:00:26]} 23. Nh6 {[%clk 00:12:16]}
{[%emt 00:00:49]} Be6 {[%clk 00:15:38]} {[%emt 00:01:29]} 24. Qf4 {[%clk
00:11:42]} {[%emt 00:00:38]} Rxd4 {[%clk 00:08:28]} {[%emt 00:07:16]} 25. Rxd4
{[%clk 00:11:27]} {[%emt 00:00:19]} Qxa2 {[%clk 00:07:48]} {[%emt 00:00:45]} 26.
Rd8 {[%clk 00:11:10]} {[%emt 00:00:22]} Kg7 {[%clk 00:07:11]} {[%emt 00:00:42]}
27. Ng4 {[%clk 00:10:03]} {[%emt 00:01:10]} Bxg4 {[%clk 00:06:20]} {[%emt
00:00:58]} 28. Qxg4 {[%clk 00:09:46]} {[%emt 00:00:22]} Qa3 {[%clk 00:04:38]}
{[%emt 00:01:47]} 29. Qd4 {[%clk 00:09:10]} {[%emt 00:00:41]} b6 {[%clk
00:03:49]} {[%emt 00:00:54]} 30. e6+ {[%clk 00:09:08]} {[%emt 00:00:06]} f6
{[%clk 00:03:01]} {[%emt 00:00:53]} 31. Qd7+ {[%clk 00:08:58]} {[%emt
00:00:14]} Kh6 {[%clk 00:02:41]} {[%emt 00:00:26]} 32. Rxe8 {[%clk 00:08:48]}
{[%emt 00:00:15]} Qe3+ {[%clk 00:02:38]} {[%emt 00:00:07]} 33. Kh1 {[%clk
00:08:50]} {[%emt 00:00:03]} Qe2 {[%clk 00:02:24]} {[%emt 00:00:19]} 34. Rg1
{[%clk 00:08:27]} {[%emt 00:00:28]} Rxe8 {[%clk 00:02:02]} {[%emt 00:00:27]} 35.
Qxe8 {[%clk 00:08:29]} {[%emt 00:00:03]} g5 {[%clk 00:02:06]} {[%emt 00:00:01]}
36. Qf8+ {[%clk 00:08:09]} {[%emt 00:00:24]} Kh5 {[%clk 00:02:09]} {[%emt
00:00:02]} 37. g4+ {[%clk 00:08:04]} {[%emt 00:00:10]} Kg6 {[%clk 00:01:32]}
{[%emt 00:00:42]} 38. Qf7+ {[%clk 00:08:05]} {[%emt 00:00:03]} Kh6 {[%clk
00:01:27]} {[%emt 00:00:10]} 39. Qxf6# {[%emt 00:00:02]} 1-0



[ePGN "0.1;DGT LiveChess/2.2.6"]